[Event "Titled Tuesday Blitz June 14 Late 2022"]
[White "Leiva, Gianmarco"]
[Black "Acosta, Pablo Ismael"]
[WhiteFideId "3804399"]
[BlackFideId "124311"]
[WhiteElo "2323"]
[BlackElo "2313"]
[Result "1-0"]
[Round "10"]
[TimeControl "180+1"]
[Date "2022.06.14"]
[WhiteClock "0:00:05"]
[BlackClock "0:00:06"]

1. e4 {[%clk 0:02:55]}  e6 {[%clk 0:02:59]} 2. d4 {[%clk 0:02:55]}  d5 {[%clk 0:03:00]} 3. Nd2 {[%clk 0:02:54]}  c5 {[%clk 0:03:00]} 4. Ngf3 {[%clk 0:02:51]}  cxd4 {[%clk 0:03:00]} 5. exd5 {[%clk 0:02:50]}  Qxd5 {[%clk 0:03:00]} 6. Bc4 {[%clk 0:02:50]}  Qd6 {[%clk 0:03:00]} 7. O-O {[%clk 0:02:46]}  Nf6 {[%clk 0:03:00]} 8. Nb3 {[%clk 0:02:45]}  Nc6 {[%clk 0:03:00]} 9. Nbxd4 {[%clk 0:02:39]}  Nxd4 {[%clk 0:02:59]} 10. Nxd4 {[%clk 0:02:32]}  Be7 {[%clk 0:02:59]} 11. Nb5 {[%clk 0:02:31]}  Qc6 {[%clk 0:02:35]} 12. Bd3 {[%clk 0:02:25]}  O-O {[%clk 0:02:26]} 13. Bg5 {[%clk 0:02:11]}  b6 {[%clk 0:02:02]} 14. Nd4 {[%clk 0:01:54]}  Qd5 {[%clk 0:01:55]} 15. Nf3 {[%clk 0:01:50]}  Bb7 {[%clk 0:01:52]} 16. Qe2 {[%clk 0:01:50]}  h6 {[%clk 0:01:49]} 17. Bh4 {[%clk 0:01:44]}  Qh5 {[%clk 0:01:45]} 18. Bxf6 {[%clk 0:01:29]}  Bxf6 {[%clk 0:01:42]} 19. c3 {[%clk 0:01:26]}  Rac8 {[%clk 0:01:32]} 20. Be4 {[%clk 0:01:25]}  Bxe4 {[%clk 0:01:25]} 21. Qxe4 {[%clk 0:01:20]}  Rfd8 {[%clk 0:01:26]} 22. Rfd1 {[%clk 0:01:19]}  Be7 {[%clk 0:01:18]} 23. Qb7 {[%clk 0:01:15]}  Bc5 {[%clk 0:01:16]} 24. Rd7 {[%clk 0:01:06]}  Qf5 {[%clk 0:01:09]} 25. Rad1 {[%clk 0:01:04]}  Rxd7 {[%clk 0:01:04]} 26. Qxc8+ {[%clk 0:01:03]}  Kh7 {[%clk 0:00:56]} 27. Qxd7 {[%clk 0:01:02]}  g6 {[%clk 0:00:55]} 28. b4 {[%clk 0:00:54]}  Bf8 {[%clk 0:00:55]} 29. Qxa7 {[%clk 0:00:53]}  Bg7 {[%clk 0:00:52]} 30. Qd7 {[%clk 0:00:36]}  Qc2 {[%clk 0:00:49]} 31. Qd2 {[%clk 0:00:36]}  Qe4 {[%clk 0:00:47]} 32. Re1 {[%clk 0:00:36]}  Qc4 {[%clk 0:00:47]} 33. Ne5 {[%clk 0:00:35]}  Qc7 {[%clk 0:00:46]} 34. f4 {[%clk 0:00:32]}  b5 {[%clk 0:00:45]} 35. Kh1 {[%clk 0:00:31]}  Qa7 {[%clk 0:00:39]} 36. Rd1 {[%clk 0:00:28]}  Qa4 {[%clk 0:00:20]} 37. Re1 {[%clk 0:00:24]}  Qa3 {[%clk 0:00:19]} 38. h3 {[%clk 0:00:21]}  Qa7 {[%clk 0:00:19]} 39. Re2 {[%clk 0:00:14]}  f6 {[%clk 0:00:18]} 40. Nf3 {[%clk 0:00:12]}  e5 {[%clk 0:00:15]} 41. fxe5 {[%clk 0:00:12]}  fxe5 {[%clk 0:00:15]} 42. Nxe5 {[%clk 0:00:12]}  Qc7 {[%clk 0:00:15]} 43. Qd3 {[%clk 0:00:07]}  Bxe5 {[%clk 0:00:14]} 44. Qxb5 {[%clk 0:00:04]}  Bg7 {[%clk 0:00:13]} 45. Qd3 {[%clk 0:00:04]}  Qf4 {[%clk 0:00:13]} 46. Re1 {[%clk 0:00:04]}  Be5 {[%clk 0:00:12]} 47. Qd7+ {[%clk 0:00:04]}  Bg7 {[%clk 0:00:12]} 48. Qd3 {[%clk 0:00:01]}  h5 {[%clk 0:00:12]} 49. Qf3 {[%clk 0:00:02]}  Qd2 {[%clk 0:00:12]} 50. Qe3 {[%clk 0:00:02]}  Qb2 {[%clk 0:00:11]} 51. b5 {[%clk 0:00:02]}  Bxc3 {[%clk 0:00:11]} 52. Qe7+ {[%clk 0:00:02]}  Kh6 {[%clk 0:00:11]} 53. Qe2 {[%clk 0:00:02]}  Qb4 {[%clk 0:00:10]} 54. Qe3+ {[%clk 0:00:02]}  g5 {[%clk 0:00:07]} 55. Qe6+ {[%clk 0:00:02]}  Kg7 {[%clk 0:00:08]} 56. Qe7+ {[%clk 0:00:03]}  Kg6 {[%clk 0:00:07]} 57. Qxb4 {[%clk 0:00:03]}  Bxb4 {[%clk 0:00:08]} 58. Rc1 {[%clk 0:00:03]}  Ba5 {[%clk 0:00:07]} 59. b6 {[%clk 0:00:04]}  Kf5 {[%clk 0:00:07]} 60. b7 {[%clk 0:00:05]}  Bc7 {[%clk 0:00:06]} 61. Rxc7 {[%clk 0:00:05]} 1-0


[Site "https://www.chess.com"]

[Event "Titled Tuesday Blitz June 14 Late 2022"]
[White "Lewtak, Damian"]
[Black "Ambartsumova, Karina"]
[WhiteFideId "1141724"]
[BlackFideId "4166299"]
[WhiteElo "2379"]
[BlackElo "2262"]
[Result "0-1"]
[Round "10"]
[TimeControl "180+1"]
[Date "2022.06.14"]
[WhiteClock "0:00:20"]
[BlackClock "0:00:55"]

1. a3 {[%clk 0:03:00]}  e5 {[%clk 0:02:59]} 2. c4 {[%clk 0:02:51]}  g6 {[%clk 0:02:57]} 3. Nc3 {[%clk 0:02:50]}  Bg7 {[%clk 0:02:57]} 4. g3 {[%clk 0:02:50]}  Ne7 {[%clk 0:02:58]} 5. Bg2 {[%clk 0:02:50]}  O-O {[%clk 0:02:58]} 6. d3 {[%clk 0:02:49]}  c6 {[%clk 0:02:58]} 7. h4 {[%clk 0:02:44]}  h5 {[%clk 0:02:57]} 8. Nf3 {[%clk 0:02:44]}  d5 {[%clk 0:02:56]} 9. cxd5 {[%clk 0:02:44]}  cxd5 {[%clk 0:02:57]} 10. Qb3 {[%clk 0:02:42]}  Nbc6 {[%clk 0:02:53]} 11. Bg5 {[%clk 0:02:39]}  f6 {[%clk 0:02:47]} 12. Bd2 {[%clk 0:02:38]}  Kh7 {[%clk 0:02:47]} 13. Rc1 {[%clk 0:02:28]}  Be6 {[%clk 0:02:18]} 14. O-O {[%clk 0:02:11]}  Qd7 {[%clk 0:02:15]} 15. Na4 {[%clk 0:02:12]}  b6 {[%clk 0:02:14]} 16. Qd1 {[%clk 0:02:08]}  Rac8 {[%clk 0:02:14]} 17. b4 {[%clk 0:02:05]}  e4 {[%clk 0:02:13]} 18. Nh2 {[%clk 0:02:00]}  f5 {[%clk 0:02:12]} 19. dxe4 {[%clk 0:01:56]}  dxe4 {[%clk 0:02:13]} 20. Bg5 {[%clk 0:01:54]}  Nd4 {[%clk 0:01:56]} 21. Nc3 {[%clk 0:01:37]}  Nec6 {[%clk 0:01:34]} 22. e3 {[%clk 0:01:26]}  Bb3 {[%clk 0:01:32]} 23. Qd2 {[%clk 0:01:14]}  Bc4 {[%clk 0:01:18]} 24. Rfd1 {[%clk 0:01:07]}  Bd3 {[%clk 0:01:10]} 25. exd4 {[%clk 0:01:07]}  Nxd4 {[%clk 0:01:09]} 26. Kh1 {[%clk 0:00:52]}  Nb3 {[%clk 0:01:07]} 27. Qe3 {[%clk 0:00:34]}  Nxc1 {[%clk 0:01:06]} 28. Nxe4 {[%clk 0:00:30]}  fxe4 {[%clk 0:01:01]} 29. Rxc1 {[%clk 0:00:25]}  Rxc1+ {[%clk 0:00:56]} 30. Qxc1 {[%clk 0:00:26]}  Rxf2 {[%clk 0:00:56]} 31. Be3 {[%clk 0:00:21]}  Rb2 {[%clk 0:00:55]} 32. Bf1 {[%clk 0:00:20]}  Rb1 {[%clk 0:00:55]} 0-1


[Site "https://www.chess.com"]

[Event "Titled Tuesday Blitz June 14 Late 2022"]
[White "Nakamura, Hikaru"]
[Black "Bernadskiy, Vitaliy"]
[WhiteFideId "2016192"]
[BlackFideId "14100371"]
[WhiteElo "2850"]
[BlackElo "2473"]
[Result "1/2-1/2"]
[Round "10"]
[TimeControl "180+1"]
[Date "2022.06.14"]
[WhiteClock "0:00:11"]
[BlackClock "0:00:17"]

1. Nf3 {[%clk 0:03:00]}  d5 {[%clk 0:02:59]} 2. e3 {[%clk 0:03:01]}  g6 {[%clk 0:02:58]} 3. c4 {[%clk 0:02:59]}  c6 {[%clk 0:02:57]} 4. Qa4 {[%clk 0:02:56]}  Nf6 {[%clk 0:02:56]} 5. cxd5 {[%clk 0:02:56]}  Nxd5 {[%clk 0:02:50]} 6. Nc3 {[%clk 0:02:56]}  Bg7 {[%clk 0:02:50]} 7. Be2 {[%clk 0:02:56]}  O-O {[%clk 0:02:49]} 8. O-O {[%clk 0:02:56]}  Nd7 {[%clk 0:02:46]} 9. Nxd5 {[%clk 0:02:54]}  cxd5 {[%clk 0:02:46]} 10. d4 {[%clk 0:02:54]}  Nb6 {[%clk 0:02:46]} 11. Qb3 {[%clk 0:02:54]}  Bg4 {[%clk 0:02:43]} 12. a4 {[%clk 0:02:48]}  Qd7 {[%clk 0:02:35]} 13. a5 {[%clk 0:02:28]}  Bxf3 {[%clk 0:02:35]} 14. gxf3 {[%clk 0:02:19]}  Nc8 {[%clk 0:02:28]} 15. Bd2 {[%clk 0:02:17]}  e6 {[%clk 0:02:26]} 16. Bb4 {[%clk 0:02:13]}  Nd6 {[%clk 0:02:25]} 17. Rac1 {[%clk 0:02:12]}  Rfc8 {[%clk 0:02:14]} 18. Bxd6 {[%clk 0:01:43]}  Qxd6 {[%clk 0:02:15]} 19. Rxc8+ {[%clk 0:01:40]}  Rxc8 {[%clk 0:02:14]} 20. Qxb7 {[%clk 0:01:41]}  Rb8 {[%clk 0:01:55]} 21. Qxa7 {[%clk 0:01:41]}  Rxb2 {[%clk 0:01:54]} 22. Bd3 {[%clk 0:01:19]}  Rd2 {[%clk 0:01:50]} 23. Bb1 {[%clk 0:01:08]}  Bf6 {[%clk 0:01:27]} 24. Qb7 {[%clk 0:00:43]}  Qa3 {[%clk 0:01:07]} 25. a6 {[%clk 0:00:27]}  Rb2 {[%clk 0:01:07]} 26. Qa8+ {[%clk 0:00:20]}  Kg7 {[%clk 0:01:05]} 27. a7 {[%clk 0:00:21]}  Rb5 {[%clk 0:00:56]} 28. Bd3 {[%clk 0:00:17]}  Ra5 {[%clk 0:00:54]} 29. Qb7 {[%clk 0:00:16]}  Rxa7 {[%clk 0:00:54]} 30. Qb1 {[%clk 0:00:17]}  Qa2 {[%clk 0:00:51]} 31. Qxa2 {[%clk 0:00:14]}  Rxa2 {[%clk 0:00:50]} 32. f4 {[%clk 0:00:15]}  Bh4 {[%clk 0:00:48]} 33. Kg2 {[%clk 0:00:15]}  h6 {[%clk 0:00:44]} 34. Kf3 {[%clk 0:00:15]}  g5 {[%clk 0:00:44]} 35. f5 {[%clk 0:00:09]}  Kf6 {[%clk 0:00:41]} 36. fxe6 {[%clk 0:00:09]}  fxe6 {[%clk 0:00:42]} 37. h3 {[%clk 0:00:09]}  e5 {[%clk 0:00:41]} 38. dxe5+ {[%clk 0:00:09]}  Kxe5 {[%clk 0:00:42]} 39. Bg6 {[%clk 0:00:07]}  d4 {[%clk 0:00:40]} 40. exd4+ {[%clk 0:00:06]}  Kxd4 {[%clk 0:00:40]} 41. Bf7 {[%clk 0:00:06]}  Rd2 {[%clk 0:00:39]} 42. Bh5 {[%clk 0:00:06]}  Ke5 {[%clk 0:00:36]} 43. Re1+ {[%clk 0:00:05]}  Kf6 {[%clk 0:00:36]} 44. Rf1 {[%clk 0:00:05]}  Rxf2+ {[%clk 0:00:35]} 45. Rxf2 {[%clk 0:00:05]}  Bxf2 {[%clk 0:00:36]} 46. Kxf2 {[%clk 0:00:05]}  Kg7 {[%clk 0:00:37]} 47. Kf3 {[%clk 0:00:06]}  Kh8 {[%clk 0:00:37]} 48. Ke4 {[%clk 0:00:06]}  Kg8 {[%clk 0:00:38]} 49. Kf5 {[%clk 0:00:07]}  Kh8 {[%clk 0:00:38]} 50. Kg6 {[%clk 0:00:08]}  Kg8 {[%clk 0:00:38]} 51. Bg4 {[%clk 0:00:08]}  Kh8 {[%clk 0:00:37]} 52. Bh5 {[%clk 0:00:05]}  Kg8 {[%clk 0:00:36]} 53. Kf6 {[%clk 0:00:06]}  Kh8 {[%clk 0:00:34]} 54. Kf7 {[%clk 0:00:06]}  Kh7 {[%clk 0:00:34]} 55. Kf8 {[%clk 0:00:06]}  Kh8 {[%clk 0:00:33]} 56. Ke7 {[%clk 0:00:07]}  Kg7 {[%clk 0:00:33]} 57. Ke6 {[%clk 0:00:07]}  Kg8 {[%clk 0:00:33]} 58. Kf6 {[%clk 0:00:08]}  Kh8 {[%clk 0:00:33]} 59. Bg6 {[%clk 0:00:09]}  h5 {[%clk 0:00:31]} 60. Bxh5 {[%clk 0:00:09]}  Kh7 {[%clk 0:00:31]} 61. Bg6+ {[%clk 0:00:10]}  Kg8 {[%clk 0:00:28]} 62. Bh5 {[%clk 0:00:10]}  Kh7 {[%clk 0:00:18]} 63. Kf7 {[%clk 0:00:10]}  Kh8 {[%clk 0:00:17]} 64. Bg6 {[%clk 0:00:11]}  g4 {[%clk 0:00:17]} 65. hxg4 {[%clk 0:00:11]} 1/2-1/2


[Site "https://www.chess.com"]

[Event "Titled Tuesday Blitz June 14 Late 2022"]
[White "Prydun, Andriy"]
[Black "Kostiukov, Alexandr"]
[WhiteFideId "14145898"]
[BlackFideId "14108100"]
[WhiteElo "2063"]
[BlackElo "2202"]
[Result "1-0"]
[Round "10"]
[TimeControl "180+1"]
[Date "2022.06.15"]
[WhiteClock "0:00:06"]
[BlackClock "0:00:22"]

1. d4 {[%clk 0:03:00]}  g6 {[%clk 0:02:59]} 2. e4 {[%clk 0:03:00]}  c5 {[%clk 0:02:58]} 3. d5 {[%clk 0:02:58]}  Bg7 {[%clk 0:02:56]} 4. c3 {[%clk 0:02:40]}  d6 {[%clk 0:02:54]} 5. Bd3 {[%clk 0:02:39]}  Nf6 {[%clk 0:02:54]} 6. Nf3 {[%clk 0:02:30]}  O-O {[%clk 0:02:53]} 7. O-O {[%clk 0:02:29]}  e6 {[%clk 0:02:53]} 8. c4 {[%clk 0:02:24]}  exd5 {[%clk 0:02:53]} 9. exd5 {[%clk 0:02:23]}  Bg4 {[%clk 0:02:50]} 10. Nc3 {[%clk 0:02:21]}  Nfd7 {[%clk 0:02:45]} 11. h3 {[%clk 0:02:19]}  Bxf3 {[%clk 0:02:44]} 12. Qxf3 {[%clk 0:02:20]}  Ne5 {[%clk 0:02:44]} 13. Qg3 {[%clk 0:02:20]}  Nbd7 {[%clk 0:02:35]} 14. Be2 {[%clk 0:01:58]}  f5 {[%clk 0:02:20]} 15. Re1 {[%clk 0:01:48]}  Re8 {[%clk 0:02:05]} 16. Bg5 {[%clk 0:01:35]}  Bf6 {[%clk 0:02:02]} 17. Bf4 {[%clk 0:01:17]}  Bh4 {[%clk 0:01:48]} 18. Qh2 {[%clk 0:01:15]}  Qb6 {[%clk 0:01:32]} 19. b3 {[%clk 0:01:01]}  Re7 {[%clk 0:01:17]} 20. g3 {[%clk 0:00:43]}  Bf6 {[%clk 0:01:16]} 21. Bd2 {[%clk 0:00:25]}  Rae8 {[%clk 0:01:14]} 22. Kf1 {[%clk 0:00:19]}  a6 {[%clk 0:01:11]} 23. Rac1 {[%clk 0:00:18]}  Qc7 {[%clk 0:00:59]} 24. f4 {[%clk 0:00:16]}  Nf7 {[%clk 0:00:57]} 25. g4 {[%clk 0:00:16]}  fxg4 {[%clk 0:00:49]} 26. hxg4 {[%clk 0:00:16]}  g5 {[%clk 0:00:49]} 27. Bd3 {[%clk 0:00:11]}  h6 {[%clk 0:00:45]} 28. Ne4 {[%clk 0:00:09]}  Bg7 {[%clk 0:00:40]} 29. fxg5 {[%clk 0:00:08]}  hxg5 {[%clk 0:00:38]} 30. Bxg5 {[%clk 0:00:05]}  Rxe4 {[%clk 0:00:37]} 31. Bxe4 {[%clk 0:00:04]}  Nxg5 {[%clk 0:00:36]} 32. Bg6 {[%clk 0:00:04]}  Rxe1+ {[%clk 0:00:34]} 33. Rxe1 {[%clk 0:00:05]}  Nf8 {[%clk 0:00:33]} 34. Re8 {[%clk 0:00:04]}  Qd7 {[%clk 0:00:31]} 35. Qf4 {[%clk 0:00:04]}  Nh7 {[%clk 0:00:28]} 36. Qe4 {[%clk 0:00:04]}  Nf6 {[%clk 0:00:27]} 37. Qe6+ {[%clk 0:00:04]}  Qxe6 {[%clk 0:00:26]} 38. dxe6 {[%clk 0:00:05]}  Nxg4 {[%clk 0:00:22]} 39. e7 {[%clk 0:00:04]}  Nf6 {[%clk 0:00:22]} 40. exf8=Q+ {[%clk 0:00:04]}  Bxf8 {[%clk 0:00:23]} 41. Rb8 {[%clk 0:00:04]}  Kg7 {[%clk 0:00:23]} 42. Bf5 {[%clk 0:00:04]}  Kh6 {[%clk 0:00:23]} 43. Rxb7 {[%clk 0:00:05]}  Kg5 {[%clk 0:00:23]} 44. Be6 {[%clk 0:00:05]}  Bh6 {[%clk 0:00:20]} 45. Ra7 {[%clk 0:00:05]}  Kf4 {[%clk 0:00:20]} 46. Rxa6 {[%clk 0:00:05]}  Ke5 {[%clk 0:00:21]} 47. Bd5 {[%clk 0:00:05]}  Ne4 {[%clk 0:00:21]} 48. Bxe4 {[%clk 0:00:05]}  Kxe4 {[%clk 0:00:21]} 49. Ke2 {[%clk 0:00:06]}  Kd4 {[%clk 0:00:21]} 50. Rxd6+ {[%clk 0:00:06]}  Kc3 {[%clk 0:00:22]} 51. Rxh6 {[%clk 0:00:06]} 1-0


[Site "https://www.chess.com"]

[Event "Titled Tuesday Blitz June 14 Late 2022"]
[White "Rios Escobar, Adan"]
[Black "Mammadova, Gulnar"]
[WhiteFideId "3403645"]
[BlackFideId "13403508"]
[WhiteElo "2450"]
[BlackElo "2255"]
[Result "1/2-1/2"]
[Round "10"]
[TimeControl "180+1"]
[Date "2022.06.14"]
[WhiteClock "0:00:04"]
[BlackClock "0:00:36"]

1. d4 {[%clk 0:03:00]}  g6 {[%clk 0:02:58]} 2. g3 {[%clk 0:03:01]}  Bg7 {[%clk 0:02:58]} 3. Bg2 {[%clk 0:03:00]}  d6 {[%clk 0:02:59]} 4. a4 {[%clk 0:03:00]}  Nd7 {[%clk 0:03:00]} 5. e4 {[%clk 0:02:57]}  e5 {[%clk 0:02:59]} 6. Ne2 {[%clk 0:02:55]}  Ne7 {[%clk 0:02:59]} 7. h3 {[%clk 0:02:54]}  O-O {[%clk 0:03:00]} 8. Nbc3 {[%clk 0:02:53]}  f5 {[%clk 0:03:00]} 9. dxe5 {[%clk 0:02:50]}  Nxe5 {[%clk 0:02:59]} 10. Bg5 {[%clk 0:02:48]}  h6 {[%clk 0:02:57]} 11. Be3 {[%clk 0:02:47]}  fxe4 {[%clk 0:02:55]} 12. Nxe4 {[%clk 0:02:43]}  Nf3+ {[%clk 0:02:55]} 13. Bxf3 {[%clk 0:02:41]}  Rxf3 {[%clk 0:02:56]} 14. Nd4 {[%clk 0:02:39]}  Rf8 {[%clk 0:02:52]} 15. Qd2 {[%clk 0:02:38]}  Nf5 {[%clk 0:02:50]} 16. O-O-O {[%clk 0:02:24]}  d5 {[%clk 0:02:43]} 17. Nxf5 {[%clk 0:02:18]}  Bxf5 {[%clk 0:02:37]} 18. Nc5 {[%clk 0:02:06]}  b6 {[%clk 0:02:24]} 19. Nd3 {[%clk 0:02:02]}  Qf6 {[%clk 0:02:16]} 20. Bxh6 {[%clk 0:01:53]}  Bxd3 {[%clk 0:02:07]} 21. Bxg7 {[%clk 0:01:53]}  Kxg7 {[%clk 0:02:04]} 22. Qxd3 {[%clk 0:01:49]}  Qxf2 {[%clk 0:01:53]} 23. Qxd5 {[%clk 0:01:41]}  Rae8 {[%clk 0:01:50]} 24. Qd4+ {[%clk 0:01:33]}  Qxd4 {[%clk 0:01:49]} 25. Rxd4 {[%clk 0:01:34]}  Rf7 {[%clk 0:01:48]} 26. Rhd1 {[%clk 0:01:32]}  Ree7 {[%clk 0:01:48]} 27. R4d3 {[%clk 0:01:30]}  c5 {[%clk 0:01:47]} 28. b3 {[%clk 0:01:30]}  Kh6 {[%clk 0:01:47]} 29. R1d2 {[%clk 0:01:30]}  Re1+ {[%clk 0:01:46]} 30. Rd1 {[%clk 0:01:28]}  Re2 {[%clk 0:01:45]} 31. R1d2 {[%clk 0:01:28]}  Re1+ {[%clk 0:01:45]} 32. Kb2 {[%clk 0:01:28]}  Ree7 {[%clk 0:01:40]} 33. Rd6 {[%clk 0:01:26]}  Rf3 {[%clk 0:01:39]} 34. R6d3 {[%clk 0:01:23]}  Ree3 {[%clk 0:01:39]} 35. Rxe3 {[%clk 0:01:23]}  Rxe3 {[%clk 0:01:40]} 36. Rg2 {[%clk 0:01:23]}  Kg5 {[%clk 0:01:39]} 37. Kc1 {[%clk 0:01:21]}  c4 {[%clk 0:01:35]} 38. Kd2 {[%clk 0:01:19]}  Rf3 {[%clk 0:01:35]} 39. bxc4 {[%clk 0:01:08]}  Ra3 {[%clk 0:01:34]} 40. Rg1 {[%clk 0:00:55]}  Rxa4 {[%clk 0:01:34]} 41. Kd3 {[%clk 0:00:55]}  Ra3+ {[%clk 0:01:33]} 42. c3 {[%clk 0:00:55]}  Ra2 {[%clk 0:01:32]} 43. Re1 {[%clk 0:00:40]}  Rh2 {[%clk 0:01:27]} 44. h4+ {[%clk 0:00:29]}  Kf6 {[%clk 0:01:22]} 45. Re4 {[%clk 0:00:25]}  a5 {[%clk 0:01:21]} 46. c5 {[%clk 0:00:22]}  bxc5 {[%clk 0:01:18]} 47. Kc4 {[%clk 0:00:20]}  a4 {[%clk 0:01:01]} 48. Kxc5 {[%clk 0:00:19]}  a3 {[%clk 0:01:02]} 49. Ra4 {[%clk 0:00:20]}  a2 {[%clk 0:01:02]} 50. c4 {[%clk 0:00:17]}  Ke5 {[%clk 0:01:03]} 51. Kc6 {[%clk 0:00:16]}  Kd4 {[%clk 0:00:53]} 52. c5+ {[%clk 0:00:16]}  Kc3 {[%clk 0:00:53]} 53. Kd7 {[%clk 0:00:11]}  Rd2+ {[%clk 0:00:50]} 54. Ke6 {[%clk 0:00:09]}  Kb3 {[%clk 0:00:51]} 55. Ra7 {[%clk 0:00:06]}  Rd4 {[%clk 0:00:50]} 56. Rxa2 {[%clk 0:00:05]}  Kxa2 {[%clk 0:00:50]} 57. c6 {[%clk 0:00:04]}  Rc4 {[%clk 0:00:50]} 58. Kd7 {[%clk 0:00:04]}  Rd4+ {[%clk 0:00:50]} 59. Ke7 {[%clk 0:00:04]}  Rc4 {[%clk 0:00:47]} 60. Kd7 {[%clk 0:00:04]}  Kb3 {[%clk 0:00:46]} 61. c7 {[%clk 0:00:04]}  Rd4+ {[%clk 0:00:42]} 62. Ke7 {[%clk 0:00:04]}  Re4+ {[%clk 0:00:43]} 63. Kf6 {[%clk 0:00:03]}  Rc4 {[%clk 0:00:42]} 64. Kxg6 {[%clk 0:00:03]}  Rxc7 {[%clk 0:00:42]} 65. h5 {[%clk 0:00:04]}  Kc4 {[%clk 0:00:43]} 66. h6 {[%clk 0:00:04]}  Kd5 {[%clk 0:00:41]} 67. h7 {[%clk 0:00:04]}  Rc8 {[%clk 0:00:41]} 68. Kg7 {[%clk 0:00:01]}  Rc7+ {[%clk 0:00:39]} 69. Kg8 {[%clk 0:00:02]}  Rc8+ {[%clk 0:00:38]} 70. Kg7 {[%clk 0:00:02]}  Rc7+ {[%clk 0:00:36]} 71. Kg8 {[%clk 0:00:03]}  Rc8+ {[%clk 0:00:36]} 72. Kg7 {[%clk 0:00:04]} 1/2-1/2


[Site "https://www.chess.com"]

[Event "Titled Tuesday Blitz June 14 Late 2022"]
[White "Romero Ruscalleda, Josep"]
[Black "Sailer, Mike"]
[WhiteFideId "2231859"]
[BlackFideId "2012901"]
[WhiteElo "2354"]
[BlackElo "2109"]
[Result "1-0"]
[Round "10"]
[TimeControl "180+1"]
[Date "2022.06.15"]
[WhiteClock "0:00:10"]
[BlackClock "0:00:02"]

1. e4 {[%clk 0:03:00]}  d5 {[%clk 0:02:59]} 2. exd5 {[%clk 0:03:00]}  Qxd5 {[%clk 0:02:58]} 3. Nc3 {[%clk 0:03:00]}  Qd6 {[%clk 0:02:56]} 4. Nf3 {[%clk 0:02:58]}  Nf6 {[%clk 0:02:56]} 5. Bc4 {[%clk 0:02:57]}  c6 {[%clk 0:02:55]} 6. O-O {[%clk 0:02:55]}  Bg4 {[%clk 0:02:54]} 7. h3 {[%clk 0:02:56]}  Bh5 {[%clk 0:02:52]} 8. Qe2 {[%clk 0:02:54]}  e6 {[%clk 0:02:52]} 9. Re1 {[%clk 0:02:51]}  Be7 {[%clk 0:02:51]} 10. a4 {[%clk 0:02:48]}  a5 {[%clk 0:02:48]} 11. d3 {[%clk 0:02:47]}  O-O {[%clk 0:02:46]} 12. Be3 {[%clk 0:02:30]}  Nbd7 {[%clk 0:02:43]} 13. g4 {[%clk 0:02:00]}  Bg6 {[%clk 0:02:42]} 14. Bg5 {[%clk 0:01:53]}  Nb6 {[%clk 0:02:33]} 15. Bb3 {[%clk 0:01:52]}  Nbd5 {[%clk 0:02:33]} 16. Ne4 {[%clk 0:01:34]}  Nxe4 {[%clk 0:02:21]} 17. Bxe7 {[%clk 0:01:31]}  Nxe7 {[%clk 0:01:59]} 18. dxe4 {[%clk 0:01:31]}  h6 {[%clk 0:01:41]} 19. Qe3 {[%clk 0:01:26]}  Rfd8 {[%clk 0:01:39]} 20. c3 {[%clk 0:01:25]}  Qc7 {[%clk 0:01:32]} 21. Nh4 {[%clk 0:01:16]}  Bh7 {[%clk 0:01:15]} 22. f4 {[%clk 0:01:16]}  Rd7 {[%clk 0:01:11]} 23. f5 {[%clk 0:01:15]}  exf5 {[%clk 0:01:00]} 24. exf5 {[%clk 0:01:13]}  Kf8 {[%clk 0:00:44]} 25. Rad1 {[%clk 0:01:10]}  Rad8 {[%clk 0:00:43]} 26. Rxd7 {[%clk 0:01:09]}  Qxd7 {[%clk 0:00:38]} 27. Qe5 {[%clk 0:00:58]}  Nd5 {[%clk 0:00:29]} 28. Bxd5 {[%clk 0:00:51]}  cxd5 {[%clk 0:00:25]} 29. Nf3 {[%clk 0:00:46]}  f6 {[%clk 0:00:12]} 30. Qd4 {[%clk 0:00:46]}  Bg8 {[%clk 0:00:11]} 31. Nh4 {[%clk 0:00:43]}  Bf7 {[%clk 0:00:11]} 32. Kg2 {[%clk 0:00:42]}  Kg8 {[%clk 0:00:12]} 33. Qc5 {[%clk 0:00:39]}  Re8 {[%clk 0:00:09]} 34. Rxe8+ {[%clk 0:00:35]}  Qxe8 {[%clk 0:00:10]} 35. Kf2 {[%clk 0:00:33]}  Qe4 {[%clk 0:00:06]} 36. Qc8+ {[%clk 0:00:20]}  Kh7 {[%clk 0:00:06]} 37. Qxb7 {[%clk 0:00:19]}  Qf4+ {[%clk 0:00:05]} 38. Nf3 {[%clk 0:00:19]}  d4 {[%clk 0:00:05]} 39. cxd4 {[%clk 0:00:18]}  Qc1 {[%clk 0:00:03]} 40. Qxf7 {[%clk 0:00:17]}  Qxb2+ {[%clk 0:00:03]} 41. Kg3 {[%clk 0:00:17]}  Qc3 {[%clk 0:00:02]} 42. Qg6+ {[%clk 0:00:16]}  Kg8 {[%clk 0:00:02]} 43. Qe8+ {[%clk 0:00:16]}  Kh7 {[%clk 0:00:03]} 44. d5 {[%clk 0:00:16]}  Qb4 {[%clk 0:00:02]} 45. Qg6+ {[%clk 0:00:14]}  Kh8 {[%clk 0:00:02]} 46. Qe8+ {[%clk 0:00:14]}  Kh7 {[%clk 0:00:03]} 47. Qc6 {[%clk 0:00:13]}  Qe4 {[%clk 0:00:02]} 48. Qc5 {[%clk 0:00:11]}  h5 {[%clk 0:00:02]} 49. d6 {[%clk 0:00:10]} 1-0


[Site "https://www.chess.com"]